bitfinex/quotes_ETHUSD_20250815
["timestamp","ask_amount","ask_price","bid_price","bid_amount"]
[1755277892763,11.81931959,4405.2,4404.2,0.001]
[1755277892764,2.82050836,4404.3,4404.2,0.001]
[1755277893067,3.579,4404.3,4404.2,0.001]
[1755277893369,4.2426,4404.3,4404.2,0.001]
[1755277893592,0.1136,4404.3,4404.2,2.0031]
[1755277893726,0.1136,4404.3,4404.2,2.1387]
[1755277894063,3.6976,4404.3,4404.2,2.1387]
[1755277894360,0.1136,4404.3,4404.2,4.40925992]
[1755277894572,0.1136,4404.3,4404.2,24.28057472]
[1755277894719,0.1136,4404.3,4404.2,27.28057472]
[1755277895162,3.584,4404.7,4404.4,2.2704281]
[1755277895320,0.1136,4404.6,4404.5,0.26975348]
[1755277895521,0.1136,4404.6,4404.5,2.67575874]
[1755277895761,3.587,4405.4,4404.5,0.40535348]
[1755277896070,5.452,4406.3,4404.5,0.40535348]
[1755277896071,3.588,4405.3,4405.2,2.27004449]
[1755277896282,3.588,4405.3,4405.2,2.72406885]
[1755277896656,3.588,4405.3,4405.2,0.45402436]
[1755277896870,3.588,4405.3,4404.5,0.26975348]
[1755277897086,0.1136,4404.6,4404.2,0.001]
[1755277897261,3.59,4404.5,4404.2,2.27151871]
[1755277897456,3.59,4404.5,4404.2,0.001]
[1755277898186,0.1136,4404.3,4404.2,0.001]
[1755277898688,0.55,4405.2,4404.5,2.27036632]
[1755277898889,3.59,4405.1,4404.6,0.22703663]
[1755277899072,2.27030217,4404.7,4404.6,0.22703663]
[1755277899251,2.27030217,4404.7,4404.2,0.001]
[1755277899252,2.27050836,4404.3,4404.2,0.001]
[1755277899453,6.52410836,4404.3,4404.2,0.001]
[1755277901062,8.30910836,4404.3,4404.2,0.001]
[1755277902195,11.7942233,4404.3,4404.2,0.001]
[1755277902560,12.74697945,4404.3,4404.2,0.001]
[1755277902964,11.7942233,4404.3,4404.2,0.001]
[1755277903995,17.2472233,4404.3,4404.2,0.001]
[1755277904203,17.2472233,4404.3,4403.1,10.02]
[1755277904204,0.55,4404.0,4403.1,10.02]
[1755277904355,0.55,4403.2,4403.1,3.76841992]
[1755277904561,11.09422487,4403.2,4403.1,3.76841992]
[1755277904756,10.48739052,4403.2,4403.1,3.76841992]
[1755277905081,12.65331742,4403.2,4403.1,3.76841992]
[1755277905294,2.82159147,4402.2,4401.5,2.5]
[1755277905477,10.50759848,4402.2,4402.1,1e-08]
[1755277905665,13.08752279,4402.2,4402.1,1e-08]
[1755277905889,9.49346241,4402.2,4402.1,1e-08]
[1755277906207,9.49346241,4402.2,4401.1,1e-08]
[1755277906208,3.55,4402.1,4401.1,1e-08]
[1755277906526,2.8221076,4401.2,4401.1,1e-08]
[1755277906798,10.51395152,4401.2,4401.1,1e-08]
[1755277907001,6.30744405,4401.2,4401.1,1e-08]
[1755277907223,11.0834392,4401.2,4401.1,1e-08]
[1755277907698,7.85663615,4401.2,4401.1,1e-08]
[1755277907904,11.17789404,4401.2,4401.1,1e-08]
[1755277908090,7.8260678,4401.2,4401.1,1e-08]
[1755277908418,7.5717754,4401.2,4401.1,1e-08]
[1755277908724,7.5717754,4401.2,4400.1,0.02]
[1755277908725,2.82262397,4400.2,4400.1,0.02]
[1755277908875,0.55,4400.2,4400.1,0.02]
[1755277909310,4.172,4400.2,4400.1,0.02]
[1755277909618,0.48533645,4400.3,4400.1,0.02]
[1755277909918,1.21184024,4401.4,4400.1,0.02]
[1755277909919,3.625,4400.2,4400.1,2.42867562]
[1755277910069,0.48439052,4401.6,4400.1,0.63614784]
[1755277910372,0.80789349,4402.0,4400.1,0.63614784]
[1755277910373,3.626,4401.5,4400.2,0.136]
[1755277910710,3.626,4401.4,4400.1,0.02]
[1755277911013,3.63,4401.3,4400.9,2.27224791]
[1755277911212,3.63,4401.3,4400.9,2.40824791]
[1755277911377,3.63,4401.3,4401.0,0.24082479]
[1755277911574,3.63,4401.3,4400.1,0.02]
[1755277911776,0.55,4401.2,4400.1,0.02]
[1755277912010,0.5,4400.9,4400.5,2.2724666]
[1755277912203,0.5,4400.9,4400.6,0.136]
[1755277912388,0.5,4400.9,4400.8,2.27231412]
[1755277912612,0.5,4400.9,4400.8,2.86278559]
[1755277912912,3.631,4401.0,4400.8,0.45447147]
[1755277913212,3.631,4401.0,4400.6,2.27237801]
[1755277913427,3.631,4401.0,4400.3,0.136]
[1755277913729,3.48402978,4402.2,4400.5,2.27246903]
[1755277913884,3.633,4402.1,4401.3,2.27204764]
[1755277914071,3.633,4402.1,4401.3,2.72647573]
[1755277914273,3.633,4402.1,4401.3,2.27204988]
[1755277914476,5.453,4402.3,4401.0,0.136]
[1755277914716,3.633,4402.2,4402.1,2.27163167]
[1755277915425,3.7466,4402.2,4401.8,2.27179675]
[1755277915714,3.7466,4402.2,4401.9,0.23853968]
[1755277915885,3.7466,4402.2,4401.9,2.51026313]
[1755277916089,3.7466,4402.2,4401.9,0.23853968]
[1755277916288,3.7466,4402.2,4401.6,0.1136]
[1755277916617,3.633,4402.2,4400.6,0.136]
[1755277916792,0.1136,4401.8,4401.5,2.27193133]
[1755277916989,3.632,4401.7,4401.5,2.27193133]
[1755277917385,3.632,4401.7,4401.2,0.1136]
[1755277917610,3.632,4401.7,4401.2,0.2496]
[1755277917815,3.632,4401.7,4401.2,2.38569889]
[1755277918025,3.632,4401.7,4400.2,0.136]
[1755277918187,0.1136,4401.3,4400.7,0.1136]
[1755277918385,3.63,4401.2,4400.7,0.1136]
[1755277918683,0.55,4401.1,4400.7,0.1136]
[1755277919106,0.1136,4400.8,4400.1,2.29263424]
[1755277919323,0.1136,4400.5,4400.3,2.27256607]
[1755277919491,0.1136,4400.5,4400.2,2.81188543]
[1755277919823,0.1136,4400.5,4400.1,0.02]
[1755277920118,3.629,4400.7,4400.1,0.02]
[1755277920119,0.1136,4400.2,4400.1,0.02]
[1755277920433,3.7466,4400.3,4400.1,0.02]
[1755277920721,0.1136,4401.6,4400.5,2.27246903]
[1755277921019,3.637,4401.8,4401.5,0.1136]
[1755277921615,3.637,4401.8,4400.1,0.02]
[1755277921824,3.637,4401.8,4401.1,0.1136]
[1755277921825,0.1136,4401.7,4401.1,0.1136]
[1755277922113,0.1136,4401.7,4401.2,2.27210091]
[1755277922318,0.1136,4401.7,4400.9,2.27224985]
[1755277922319,0.4736,4401.7,4400.9,2.27226057]
[1755277922485,0.1136,4401.3,4400.9,0.45446592]
[1755277922824,0.1136,4401.3,4401.2,2.2721076]
[1755277923024,3.7526,4401.3,4401.2,2.2721076]
[1755277923320,0.002,4402.1,4401.6,2.27188558]
[1755277923521,0.1136,4401.7,4401.4,2.27196033]
[1755277923729,0.1136,4401.7,4401.4,0.23855603]
[1755277923944,3.638,4401.8,4401.5,2.27195274]
[1755277924099,3.638,4401.8,4401.7,2.27184951]
[1755277924302,3.638,4401.8,4401.4,0.2496]
[1755277924303,3.638,4401.8,4401.6,2.27189986]
[1755277924524,3.638,4401.8,4401.7,2.27184951]
[1755277924726,0.1136,4402.0,4401.5,2.2719164]
[1755277924927,3.638,4402.1,4401.7,2.27184011]
[1755277925129,3.638,4402.1,4402.0,2.27169468]
[1755277925302,0.002,4402.1,4401.6,0.23855164]
[1755277925637,0.002,4402.1,4401.4,0.1136]
[1755277925944,0.002,4402.1,4402.0,2.27169468]
[1755277926148,0.002,4402.1,4402.0,2.38529468]
[1755277926431,0.002,4402.1,4402.0,5.52129468]
[1755277928324,0.002,4402.1,4402.0,2.38529468]
[1755277928523,0.002,4402.1,4400.7,0.136]
[1755277928524,3.635,4402.1,4400.7,0.136]
[1755277928724,3.635,4402.1,4401.7,0.1136]
[1755277929105,3.635,4402.1,4401.9,2.27172418]
[1755277929413,3.635,4402.1,4401.8,2.27179542]
[1755277929614,0.4621,4402.0,4400.9,3.0]
[1755277929814,0.4621,4402.0,4401.8,2.2717557]
[1755277929815,0.1136,4402.0,4401.8,2.2717557]
[1755277930015,0.002,4402.1,4402.0,2.27169468]
[1755277930845,0.002,4402.1,4402.0,5.40769468]
[1755277931151,0.1336,4403.4,4403.3,2.271024]
[1755277931356,0.1336,4403.4,4402.9,2.27118702]
[1755277931541,0.1336,4403.4,4402.8,2.27125444]
[1755277931853,0.1336,4403.4,4402.8,0.1136]
[1755277932054,0.1336,4403.4,4402.9,2.27123032]
[1755277932561,0.02,4403.4,4403.3,2.384624]
[1755277933531,1e-08,4403.4,4403.3,2.384624]
[1755277933732,0.02,4404.4,4404.3,2.27050836]
[1755277933943,0.02,4404.4,4404.3,2.29321344]
[1755277934175,0.02,4404.4,4404.3,3.87515159]
[1755277934673,0.02,4404.4,4404.3,3.85244651]
[1755277934980,0.02,4404.4,4404.3,2.38410836]
[1755277936171,0.02,4404.4,4404.3,5.52010836]
[1755277936577,0.02,4404.4,4404.3,5.38410836]
[1755277937368,0.002,4405.2,4404.3,5.38410836]
[1755277937588,0.002,4405.2,4405.1,0.1136]
[1755277937775,0.002,4405.2,4405.1,2.38369602]
[1755277938278,0.002,4405.2,4405.1,0.1136]
[1755277938463,0.002,4405.2,4403.6,0.1136]
[1755277938464,0.4641,4405.2,4404.0,3.0]
[1755277938668,0.4641,4405.2,4404.6,2.27030647]
[1755277938871,0.4641,4405.2,4404.2,5.27055992]
[1755277938872,0.1136,4404.7,4404.2,5.27055992]
[1755277939067,0.1136,4404.7,4404.3,2.2704824]
[1755277939377,0.4621,4404.6,4404.4,2.27044228]
[1755277939583,0.1136,4404.7,4404.4,2.27044228]
[1755277939772,0.4621,4404.5,4404.4,2.27044228]
[1755277940086,0.4621,4404.5,4404.3,2.27050609]
[1755277940256,0.1136,4404.7,4404.2,2.27054992]
[1755277940257,0.4621,4404.4,4404.2,2.27054992]
[1755277940446,0.4621,4404.3,4403.0,5.454]
[1755277940639,0.4621,4404.3,4403.8,0.1136]
[1755277940884,0.4621,4404.3,4404.1,2.27059805]
[1755277941086,0.1136,4404.4,4403.8,2.38434546]
[1755277941087,0.1136,4404.4,4404.2,2.27055992]
[1755277941288,0.1136,4404.7,4404.5,2.27039351]
[1755277941514,0.1136,4404.7,4403.8,0.1136]
[1755277941726,3.85719426,4405.2,4403.4,3.0]
[1755277941727,0.002,4405.2,4403.9,0.23844199]
[1755277941875,0.1136,4405.0,4404.5,2.27040526]
[1755277942070,0.1136,4405.0,4404.9,2.27019909]
[1755277942820,0.002,4405.2,4405.1,2.27009602]
[1755277944677,0.002,4405.2,4405.0,2.27014441]
[1755277944889,0.002,4405.2,4404.9,0.1136]
[1755277945201,0.4621,4405.1,4404.9,0.1136]
[1755277945400,0.4621,4405.0,4404.7,2.27030057]
[1755277945607,0.4621,4404.9,4404.8,2.27024698]
[1755277945803,0.4621,4404.9,4404.7,0.1136]
[1755277946102,0.4621,4404.8,4404.7,0.1136]
[1755277946308,0.4621,4404.8,4404.7,2.27030217]
[1755277946600,0.4621,4404.8,4404.5,2.27039456]
[1755277946805,0.1136,4404.8,4404.5,2.27039456]
[1755277947114,0.4621,4404.7,4404.5,2.27039456]
[1755277947313,0.4621,4404.7,4404.2,2.27055992]
[1755277947492,0.4621,4404.7,4404.3,2.27050836]
[1755277947688,2.27206774,4405.2,4403.1,0.5692483]
[1755277947689,0.4621,4404.6,4403.1,0.5692483]
[1755277947889,3.622,4405.2,4404.5,2.27036986]
[1755277947890,0.4621,4405.0,4404.5,2.27036986]
[1755277948091,0.002,4405.2,4404.8,2.27021342]
[1755277948410,0.002,4405.2,4405.0,2.27013311]
[1755277948583,0.002,4405.2,4404.3,2.27050836]
[1755277948780,0.002,4405.2,4404.7,2.27030134]
[1755277948987,0.002,4405.2,4405.1,2.27009602]
[1755277949191,0.002,4405.2,4405.0,2.27009718]
[1755277949390,0.002,4405.2,4405.1,2.27009602]
[1755277950425,0.4641,4405.2,4404.3,3.0]
[1755277950931,0.002,4405.2,4405.1,2.27009602]
[1755277952703,0.4641,4405.2,4405.1,2.27009602]
[1755277952903,0.4641,4405.2,4404.9,2.27019755]
[1755277953145,0.4621,4405.1,4404.9,2.27016013]
[1755277953349,0.002,4405.2,4404.9,2.27016013]
[1755277953533,0.4621,4405.0,4403.7,0.136]
[1755277953750,0.4621,4405.0,4403.9,3.0]
[1755277953921,0.4621,4405.0,4404.6,2.27033428]
[1755277954118,0.4621,4404.9,4404.4,2.27041931]
[1755277954324,0.4621,4404.8,4403.9,2.27071459]
[1755277954518,0.4621,4404.8,4404.5,2.27039856]
[1755277954735,0.002,4405.2,4404.0,2.27066303]
[1755277954922,0.002,4405.2,4404.7,2.27025257]
[1755277955118,0.4621,4405.1,4404.2,2.27052073]
[1755277955446,0.4621,4405.1,4403.8,6.623]
[1755277955636,2.73219934,4405.1,4403.8,6.623]
[1755277955947,2.73219934,4405.1,4403.9,2.27069775]
[1755277955948,2.27031493,4404.7,4403.9,2.27069775]
[1755277956145,2.27040526,4404.5,4403.7,2.27080303]
[1755277956307,0.55,4404.7,4402.9,2.27122464]
[1755277956528,0.4495,4404.4,4403.4,2.27094212]
[1755277956743,0.27199088,4404.3,4403.4,2.27094212]
[1755277956948,2.27059894,4404.2,4403.4,2.27094212]
[1755277957154,2.27059894,4404.2,4402.8,3.622]
[1755277957155,0.4495,4404.2,4403.5,2.27191397]
[1755277957452,0.4495,4404.2,4403.6,2.27082701]
[1755277957656,0.1136,4403.7,4403.5,0.001]
[1755277957832,0.1136,4404.0,4403.9,2.27069836]
[1755277958028,0.1136,4404.0,4403.8,2.27075245]
[1755277958236,0.4495,4403.9,4403.5,0.001]
[1755277958660,0.4495,4403.8,4403.5,0.001]
[1755277958961,0.4495,4403.8,4403.6,2.27081779]
[1755277959170,0.4495,4403.7,4403.5,0.001]
[1755277959326,2.38446928,4403.6,4403.5,0.001]
[1755277959524,3.7063455,4403.6,4403.5,0.001]
[1755277959762,4.74282325,4403.6,4403.5,0.001]
[1755277960565,2.47195397,4403.6,4403.5,0.001]
[1755277960763,5.05347622,4403.6,4403.5,0.001]
[1755277961068,0.1136,4403.6,4403.5,0.001]
[1755277961276,0.1136,4403.6,4403.5,2.27192085]
[1755277961495,0.4495,4404.5,4404.1,2.27059571]
[1755277961696,0.48672185,4404.8,4403.5,0.001]
[1755277961697,3.619,4404.4,4404.0,2.27064796]
[1755277961873,0.1136,4404.0,4403.8,2.27071694]
[1755277962263,0.1136,4404.0,4403.5,0.001]
[1755277962461,0.4495,4403.9,4403.5,0.001]
[1755277962802,0.1136,4403.6,4403.5,0.001]
[1755277962959,2.38446928,4403.6,4403.5,0.001]
[1755277963164,6.96243773,4403.6,4403.5,0.001]
[1755277963565,4.69156845,4403.6,4403.5,0.001]
[1755277964161,4.24206845,4403.6,4403.5,0.001]
[1755277964380,3.7316,4403.6,4403.5,0.001]
[1755277964601,4.1811,4403.6,4403.5,0.001]
[1755277964807,0.1136,4403.6,4403.5,0.001]
[1755277965471,0.1136,4403.6,4403.5,2.27192085]
[1755277965801,0.1136,4404.0,4403.5,2.27190025]
[1755277966109,0.1136,4404.0,4403.5,0.001]
[1755277966278,1.8214,4403.9,4403.5,0.001]
[1755277966673,0.48646,4404.0,4403.5,0.001]
[1755277966879,0.1136,4403.6,4403.5,0.001]
[1755277969187,0.1136,4403.6,4403.5,2.27192085]
[1755277969966,0.1136,4403.6,4403.5,0.001]
[1755277970209,0.1136,4403.6,4403.5,2.27192085]
[1755277970801,0.4495,4404.2,4403.7,2.27079846]
[1755277971015,3.7226,4403.9,4403.7,2.27079846]
[1755277971666,0.4495,4404.7,4403.5,0.0237092]
[1755277971863,0.1136,4404.6,4404.5,2.27040526]
[1755277972064,0.1136,4404.6,4404.0,0.1136]
[1755277972309,0.1136,4404.6,4404.5,2.27040526]
[1755277972663,0.1136,4404.6,4404.0,0.1136]
[1755277972861,3.7236,4404.6,4404.2,2.2705545]
[1755277973366,3.7236,4404.6,4404.0,0.1136]
[1755277973567,3.7236,4404.6,4404.3,2.27047787]
[1755277973794,3.7236,4404.6,4404.0,0.1136]
[1755277974014,3.7236,4404.6,4404.0,2.38426075]
[1755277974316,3.7206,4404.6,4404.3,2.27046801]
[1755277974523,3.7206,4404.6,4404.5,2.27040526]
[1755277974887,3.606,4404.8,4404.6,2.27032909]
[1755277975086,0.1136,4404.8,4404.7,2.27030217]
[1755277975294,3.7206,4405.2,4404.6,0.1136]
[1755277975593,3.7206,4405.2,4405.1,2.27009602]
[1755277975781,0.1156,4405.2,4405.1,2.27009602]
[1755277976178,0.002,4405.2,4405.1,2.27009602]
[1755277978903,0.002,4405.2,4405.1,2.38369602]
[1755277979110,0.002,4405.2,4405.1,2.84908269]
[1755277980052,0.002,4405.2,4405.1,2.38369602]
[1755277980513,1.8234,4405.2,4404.2,3.599]
[1755277980706,0.002,4405.2,4404.9,2.27019909]
[1755277980948,0.002,4405.2,4405.1,2.27009602]
[1755277981152,0.4515,4405.2,4405.0,0.1136]
[1755277981311,0.4515,4405.2,4405.0,2.27014755]
[1755277981312,1.8214,4405.1,4405.0,2.27014755]
[1755277981715,0.002,4405.2,4405.1,2.27009602]
[1755277982309,0.002,4405.2,4405.1,2.83772038]
[1755277983347,0.002,4405.2,4405.1,2.38369602]
[1755277984023,0.002,4405.2,4405.0,2.27009845]
[1755277984230,1.8234,4405.2,4405.0,2.27009845]
[1755277984430,0.4495,4405.1,4405.0,2.27009845]
[1755277984752,1.8214,4405.1,4404.6,0.1136]
[1755277984911,1.8214,4405.0,4404.4,2.27041154]
[1755277985106,0.1136,4404.9,4404.4,2.27041154]
[1755277985313,1.8214,4404.8,4404.2,2.27053558]
[1755277985538,1.8214,4404.8,4404.3,2.27050019]
[1755277985738,1.8214,4404.7,4404.2,2.27054844]
[1755277985935,1.8214,4404.7,4403.9,3.595]
[1755277985936,5.4164,4404.6,4403.9,2.27070896]
[1755277986152,0.1136,4404.3,4404.2,2.27055992]
[1755277986318,0.1136,4404.3,4404.0,2.27066211]
[1755277986547,0.4328,4404.2,4403.9,2.27067408]
[1755277986748,1.7961,4404.2,4403.9,2.27067408]
[1755277986975,1.7961,4404.1,4403.7,0.1136]
[1755277987290,1.7961,4404.0,4403.7,0.1136]
[1755277987585,0.1136,4403.8,4403.5,2.27187735]
[1755277987745,0.1136,4403.8,4403.5,0.001]
[1755277987942,1.7961,4403.7,4403.5,0.001]
[1755277988483,1.7961,4403.6,4403.5,0.001]
[1755277991972,4.06696928,4403.6,4403.5,0.001]
[1755277992172,5.26210386,4403.6,4403.5,0.001]
[1755277993490,8.85010386,4403.6,4403.5,0.001]
[1755277996568,11.85010386,4403.6,4403.5,0.001]
[1755277997208,8.26210386,4403.6,4403.5,0.001]
[1755277997512,11.84610386,4403.6,4403.5,0.001]
[1755277998078,5.26210386,4403.6,4403.5,0.001]
[1755277998283,8.84610386,4403.6,4403.5,0.001]
[1755277999078,0.1136,4403.6,4403.5,0.001]
[1755277999299,3.584,4403.6,4403.5,0.001]
[1755277999615,3.584,4403.9,4403.5,2.27187439]
[1755277999916,3.584,4403.9,4403.6,2.27086657]
[1755278000110,3.584,4403.9,4403.7,2.27079905]
[1755278000612,3.584,4403.9,4403.5,0.001]
[1755278000801,3.584,4403.9,4403.5,2.27191351]
[1755278001002,3.584,4403.9,4403.5,0.001]
[1755278001409,5.3801,4403.9,4403.5,0.001]
[1755278001618,1.7961,4403.8,4403.5,0.001]
[1755278001819,0.1136,4403.6,4403.5,0.001]
[1755278002019,3.6976,4403.6,4403.5,0.001]
[1755278002538,0.1136,4403.6,4403.5,2.27192085]
[1755278002713,3.584,4403.9,4403.5,0.001]
[1755278002914,3.6976,4403.9,4403.7,2.27080811]
[1755278003233,0.1136,4403.9,4403.5,2.271904]
[1755278003404,0.1136,4403.9,4403.6,2.27085423]
[1755278003604,0.1136,4403.9,4403.5,0.001]
[1755278003938,3.584,4404.4,4403.6,0.136]
[1755278004101,0.1136,4404.3,4404.1,2.27060306]
[1755278004420,0.1136,4404.3,4403.7,0.1136]
[1755278004620,0.1136,4404.3,4404.1,2.27058679]
[1755278004830,0.1136,4404.3,4404.2,2.27055992]
[1755278005042,0.1136,4404.3,4404.0,2.27063915]
[1755278005238,3.584,4404.7,4404.2,2.27055992]
[1755278005410,3.584,4404.7,4403.6,0.136]
[1755278005411,4.06645372,4404.6,4403.6,2.27086928]
[1755278005613,2.27040526,4404.5,4403.8,0.1136]
[1755278005934,2.27040526,4404.5,4403.5,0.001]
[1755278005935,2.27071459,4403.9,4403.5,0.001]
[1755278006110,0.1136,4403.8,4403.5,0.001]
[1755278006320,1.9097,4403.8,4403.5,0.001]
[1755278006637,1.7961,4403.7,4403.5,0.001]
[1755278007005,1.7961,4403.6,4403.5,0.001]
[1755278007523,1.7961,4404.7,4404.2,2.27052403]
[1755278007734,0.1136,4404.5,4403.5,0.2506]
[1755278007938,0.1136,4404.5,4404.4,2.27045681]
[1755278008122,0.1136,4404.5,4404.2,2.27050952]
[1755278008441,0.1136,4404.5,4404.3,2.27046777]
[1755278008640,0.1136,4404.5,4404.4,2.27045681]
[1755278009910,0.1136,4404.5,4404.3,2.27049881]
[1755278010110,1.9097,4404.5,4404.0,0.1136]
[1755278010723,1.7961,4404.4,4403.5,2.2719058]
[1755278010941,1.7961,4404.4,4403.7,2.27081772]
[1755278010942,3.583,4404.3,4403.7,2.27081772]
[1755278011113,0.1136,4404.2,4403.7,2.27081772]
[1755278011313,1.7961,4404.1,4403.5,0.001]
[1755278011549,0.1136,4403.8,4403.5,0.001]
[1755278011709,3.6966,4403.8,4403.5,0.001]
[1755278011908,1.7961,4403.7,4403.5,0.001]
[1755278012447,1.7961,4403.6,4403.5,0.001]
[1755278014620,4.06696928,4403.6,4403.5,0.001]
[1755278014916,1.7961,4403.6,4403.5,0.001]
[1755278015151,4.06696928,4403.6,4403.5,0.001]
[1755278015328,1.7961,4403.6,4403.5,0.001]
[1755278015526,4.06696928,4403.6,4403.5,0.001]
[1755278015751,1.7961,4403.6,4403.5,0.001]
[1755278016116,4.06696928,4403.6,4403.5,0.001]
[1755278016636,3.6966,4403.6,4403.5,0.001]
[1755278016822,3.6966,4403.7,4403.5,0.001]
[1755278017025,3.6966,4403.7,4403.6,2.27084815]
[1755278017249,3.6966,4403.7,4403.5,0.001]
[1755278017435,3.6966,4403.7,4403.5,2.27190995]
[1755278017637,3.6966,4403.7,4403.6,2.27086928]
[1755278018042,0.54957,4404.5,4403.5,0.001]
[1755278018254,0.1136,4404.5,4404.4,2.2704368]
[1755278018553,0.1136,4404.5,4404.3,2.27045929]
[1755278018761,0.1136,4404.5,4403.9,0.1136]
[1755278018941,0.1136,4404.5,4404.4,2.27045681]
[1755278019253,0.1136,4404.5,4404.3,2.27050467]
[1755278019437,0.1136,4404.5,4404.4,2.27045681]
[1755278019643,0.1136,4404.5,4404.2,2.27055992]
[1755278019845,1.7755,4404.4,4404.2,2.27054696]
[1755278020017,0.4528,4404.4,4404.0,2.27062605]
[1755278020219,1.7755,4404.4,4404.0,2.27062605]
[1755278020529,5.3585,4404.3,4403.9,0.1136]
[1755278020744,5.3585,4404.3,4403.5,0.001]
[1755278021059,1.7755,4404.2,4403.6,2.27083062]
[1755278021239,0.1136,4403.7,4403.6,2.27083062]
[1755278021822,3.583,4403.9,4403.5,2.2719033]
[1755278022056,0.1136,4404.0,4403.6,2.27085412]
[1755278022218,0.1136,4404.0,4403.9,2.27071459]
[1755278022422,0.1136,4404.0,4403.5,0.001]
[1755278022925,3.583,4404.2,4403.9,2.27068399]
[1755278023126,1.7755,4404.2,4403.7,2.38437608]
[1755278023434,1.3227,4404.2,4403.9,2.27067588]
[1755278023632,0.1136,4404.3,4403.7,2.38439408]
[1755278023857,3.6966,4404.3,4403.7,0.1136]
[1755278024069,2.27065295,4404.1,4403.5,0.001]
[1755278024287,2.38437849,4403.8,4403.5,0.001]
[1755278024491,5.85382242,4403.7,4403.5,0.001]
[1755278024672,2.82086928,4403.6,4403.5,0.001]
[1755278024873,4.59636928,4403.6,4403.5,0.001]
[1755278026790,4.59636928,4403.6,4403.0,0.001]
[1755278026791,5.82112716,4403.1,4403.0,0.001]
[1755278027002,9.57671033,4403.1,4403.0,0.001]
[1755278027156,10.1778214,4403.1,4403.0,0.001]
[1755278027493,13.258801,4403.1,4403.0,0.001]
[1755278028071,12.77128993,4403.1,4403.0,0.001]
[1755278028281,0.1136,4403.1,4403.0,0.001]
[1755278032181,2.27133349,4402.7,4402.6,0.001]
[1755278032497,5.85433349,4402.7,4402.6,0.001]
[1755278032699,7.62983349,4402.7,4402.6,0.001]
[1755278032903,7.74343349,4402.7,4402.6,0.001]
[1755278033515,8.64454069,4402.7,4402.6,0.001]
[1755278036406,5.06154069,4402.7,4402.6,0.001]
[1755278036596,8.64454069,4402.7,4402.6,0.001]
[1755278037408,2.7902072,4402.7,4402.6,0.001]
[1755278037634,3.6966,4402.7,4402.6,0.001]
[1755278038699,5.4721,4402.7,4402.6,0.001]
[1755278038900,7.74343349,4402.7,4402.6,0.001]
[1755278039429,5.4721,4402.7,4402.6,0.001]
[1755278039632,6.31931,4402.7,4402.6,0.001]
[1755278040431,3.6966,4402.7,4402.6,0.001]
[1755278040733,8.29343349,4402.7,4402.6,0.001]
[1755278043231,4.71043349,4402.7,4402.6,0.001]
[1755278043546,0.1136,4402.7,4402.6,0.001]
[1755278043752,5.96793349,4402.7,4402.6,0.001]
[1755278044262,8.62235009,4402.7,4402.6,0.001]
[1755278044406,9.17235009,4402.7,4402.6,0.001]
[1755278045719,9.17235009,4402.7,4402.1,0.02]
[1755278045720,2.27159147,4402.2,4402.1,0.02]
[1755278045937,9.51819147,4402.2,4402.1,0.02]
[1755278046143,10.00419522,4402.2,4402.1,0.02]
[1755278046345,10.00419522,4402.2,4401.1,0.02]
[1755278046346,5.8221076,4401.2,4401.1,0.02]
[1755278046651,6.5187076,4401.2,4401.1,0.02]
[1755278046808,8.3266076,4401.2,4401.1,0.02]
[1755278047653,3.6966,4401.2,4401.1,0.02]
[1755278048361,0.1136,4401.2,4401.1,0.02]
[1755278048541,3.6966,4401.2,4401.1,0.02]
[1755278048859,6.5187076,4401.2,4401.1,0.02]
[1755278049014,8.3266076,4401.2,4401.1,0.02]
[1755278049729,8.92453336,4401.2,4401.1,0.02]
[1755278052372,5.34153336,4401.2,4401.1,0.02]
[1755278052551,0.6636,4401.2,4401.1,0.02]
[1755278052723,3.6966,4401.2,4401.1,0.02]
[1755278054525,0.1136,4401.2,4401.1,0.02]
[1755278054725,6.4002076,4401.2,4401.1,0.02]
[1755278054941,7.7766076,4401.2,4401.1,0.02]
[1755278055325,8.78147043,4401.2,4401.1,0.02]
[1755278055552,9.33147043,4401.2,4401.1,0.02]
[1755278056066,9.81849448,4401.2,4401.1,0.02]
[1755278057270,16.81849447,4401.2,4401.1,0.02]
[1755278057451,13.51970759,4401.2,4401.1,0.02]
[1755278059680,13.51970759,4401.2,4401.1,0.021]
[1755278060349,14.00649269,4401.2,4401.1,0.021]
[1755278060749,15.81439269,4401.2,4401.1,0.021]
[1755278060950,15.32760759,4401.2,4401.1,0.021]
[1755278061256,15.76635335,4401.2,4401.1,0.021]
[1755278061421,3.584,4401.2,4401.1,0.021]
[1755278061626,3.6976,4401.2,4401.1,0.021]
[1755278061827,5.9697076,4401.2,4401.1,0.021]
[1755278062065,8.3276076,4401.2,4401.1,0.021]
[1755278062728,11.814562,4401.2,4401.1,0.021]
[1755278063066,13.82914179,4401.2,4401.1,0.021]
[1755278063233,13.22322167,4401.2,4401.1,0.021]
[1755278063974,14.6848579,4401.2,4401.1,1e-08]
[1755278064265,16.10792803,4401.2,4401.1,1e-08]
[1755278064477,3.55,4400.7,4400.6,1e-08]
[1755278064627,0.55,4400.4,4400.1,1e-08]
[1755278064824,4.29789865,4400.3,4398.6,2.27344939]
[1755278065075,0.55,4399.4,4398.3,0.136]
[1755278065237,3.585,4399.4,4398.8,0.136]
[1755278066077,3.585,4399.4,4398.2,2.40961267]
[1755278066282,2.27314057,4399.2,4398.1,2.29370661]